[Event "Budimex POL-ch Women 2018"]
[Site "Warsaw"]
[Date "2018.05.12"]
[Round "1"]
[White "Warakomska, Anna"]
[Black "Bartel, Marta"]
[Result "1-0"]
[ECO "B12"]
[WhiteElo "2295"]
[BlackElo "2280"]
[Annotator "NA"]
[PlyCount "45"]
[EventDate "2018.??.??"]
[EventType "tourn"]
[EventCountry "POL"]
[SourceTitle "playchess.com"]
[Source "ChessBase"]
[SourceQuality "1"]
[TimeControl "40/5400+30:1800+30"]

1. e4 {[%emt 0:00:00]} c6 {[%emt 0:00:11]} 2. d4 {[%emt 0:00:00]} d5 {[%emt 0:00:06]} 3. e5 {[%emt 0:00:13]} c5 {[%emt 0:00:14]} 4. dxc5 {[%emt 0:00:33]} e6 {[%emt 0:00:10]} 5. a3 {[%emt 0:01:04] B12: Caro-Kann: Advance Variation} (5. Nf3 Bxc5 6. Bd3 Ne7 7. O-O Ng6 8. a3 O-O 9. Nbd2 Nc6 10. b4 Bb6 11. Bb2 Nf4 12. Nb3 a5 13. Qd2 Nxd3 14. cxd3 {½-½ (38) Vitiugov,N (2735)-Anand,V (2776) Karlsruhe/Baden-Baden 2018}) 5... Bxc5 {[%emt 0:00:21]} 6. b4 {[%emt 0:01:06]} Be7 {[%emt 0:00:52]} 7. Bb2 {[%emt 0:03:46]} a5 $146 {[%emt 0:04:11]} ({Predecessor:} 7... Bd7 8. Bd3 Nc6 9. Nf3 f6 10. O-O fxe5 11. b5 Na5 12. Nxe5 Nf6 {1-0 (44) Krivoborodov,E (2394)-Bock,J (2269) Schwaebisch Gmuend 2008}) 8. b5 {[%emt 0:17:15]} Nd7 {[%emt 0:02:36]} 9. c4 {[%emt 0:03:12]} Nb6 {[%emt 0:27:37]} 10. Nd2 {[%emt 0:03:24]} Nh6 {[%emt 0:07:40]} 11. Ngf3 {[%emt 0:02:30]} dxc4 {[%emt 0:04:08]} 12. Nxc4 {[%emt 0:10:45]} Qxd1+ {[%emt 0:03:43]} 13. Rxd1 {[%emt 0:00:12]} Na4 {[%emt 0:03:43]} 14. Ba1 {[%emt 0:03:14]} O-O {[%emt 0:06:11]} 15. Be2 {[%emt 0:03:28]} f6 {[%emt 0:05:45]} 16. O-O {[%emt 0:03:15]} Nf7 {[%emt 0:00:10]} 17. Rfe1 {[%emt 0:07:31]} fxe5 {[%emt 0:16:17]} 18. Nfxe5 {[%emt 0:10:27]} Nxe5 {[%emt 0:04:07]} 19. Bxe5 {[%emt 0:00:20]} Bf6 {[%emt 0:00:44]} 20. Bf3 {[%emt 0:04:53]} Nc3 {[%emt 0:02:24]} 21. Rc1 {[%emt 0:07:25]} Bxe5 $18 {[%emt 0:04:20]} 22. Rxe5 {[%emt 0:00:44]} Na4 {[%emt 0:02:11]} 23. Bd1 {[%emt 0:01:55]} 1-0

[Event "Budimex POL-ch Women 2018"]
[Site "Warsaw"]
[Date "2018.05.12"]
[Round "1"]
[White "Sliwicka, Alicja"]
[Black "Rajlich, Iweta"]
[Result "1-0"]
[ECO "C41"]
[WhiteElo "2261"]
[BlackElo "2389"]
[Annotator "RC"]
[PlyCount "111"]
[EventDate "2018.??.??"]
[EventType "tourn"]
[EventCountry "POL"]
[SourceTitle "playchess.com"]
[Source "ChessBase"]
[SourceQuality "1"]
[TimeControl "40/5400+30:1800+30"]

1. e4 {[%emt 0:00:00]} d6 {[%emt 0:00:04]} 2. d4 {[%emt 0:00:00]} Nf6 {[%emt 0:00:04]} 3. Nc3 {[%emt 0:00:00]} e5 {[%emt 0:00:05]} 4. Nf3 {[%emt 0:00:00]} Nbd7 {[%emt 0:00:06]} 5. Bc4 {[%emt 0:00:09]} Be7 {[%emt 0:00:07]} 6. O-O {[%emt 0:00:11]} O-O {[%emt 0:00:04]} 7. a4 {[%emt 0:00:28]} c6 {[%emt 0:00:17]} 8. Re1 {[%emt 0:00:17]} h6 {[%emt 0:00:15]} 9. Ba2 {[%emt 0:00:21]} Re8 {[%emt 0:00:51]} 10. h3 {[%emt 0:01:25]} Qc7 {[%emt 0:03:18]} 11. Be3 {[%emt 0:01:06]} a5 {[%emt 0:04:21]} 12. dxe5 {[%emt 0:05:02]} dxe5 {[%emt 0:00:42]} 13. Nh4 {[%emt 0:02:28]} Nf8 {[%emt 0:20:02]} 14. Qf3 {[%emt 0:08:16]} Be6 {[%emt 0:06:01]} 15. Nf5 {[%emt 0:01:49]} Bxa2 {[%emt 0:03:23]} 16. Rxa2 {[%emt 0:03:47]} Ng6 {[%emt 0:07:35]} 17. Ne2 {[%emt 0:08:28]} Qd7 {[%emt 0:11:26]} 18. h4 {[%emt 0:10:38]} Qe6 {[%emt 0:00:29]} 19. Raa1 {[%emt 0:02:02]} Bf8 {[%emt 0:03:16]} 20. Rad1 {[%emt 0:08:34]} Red8 {[%emt 0:00:50]} 21. Neg3 {[%emt 0:03:51]} Kh7 {[%emt 0:04:38]} 22. b3 {[%emt 0:18:03]} Ne7 {[%emt 0:06:24]} 23. c4 {[%emt 0:02:26]} g6 {[%emt 0:02:43]} 24. Nxe7 {[%emt 0:01:38]} Bxe7 {[%emt 0:00:07]} 25. h5 {[%emt 0:04:03]} Bb4 {[%emt 0:03:29]} 26. Rf1 {[%emt 0:01:49]} Nd7 {[%emt 0:03:21]} 27. Qe2 {[%emt 0:01:35]} Nc5 {[%emt 0:02:30]} 28. f4 {[%emt 0:06:39]} exf4 {[%emt 0:00:14]} 29. Rxf4 {[%emt 0:00:24]} Rxd1+ {[%emt 0:01:42]} 30. Qxd1 {[%emt 0:00:05]} Nd7 {[%emt 0:03:14]} 31. Qf1 {[%emt 0:01:20]} Kg8 {[%emt 0:00:45]} 32. Ne2 {[%emt 0:03:07]} Bd6 {[%emt 0:01:31]} 33. Nd4 {[%emt 0:00:23]} Qe5 {[%emt 0:02:40]} 34. Qf3 {[%emt 0:01:50]} Rf8 {[%emt 0:01:11]} 35. Rh4 {[%emt 0:01:06]} g5 {[%emt 0:01:06]} 36. Rh1 {[%emt 0:02:54]} Re8 {[%emt 0:01:02]} 37. Nf5 {[%emt 0:00:27]} Bf8 {[%emt 0:01:44]} 38. Ng3 {[%emt 0:00:23]} Nf6 {[%emt 0:00:31]} 39. Kf2 {[%emt 0:01:22]} Nxe4+ {[%emt 0:01:56]} 40. Nxe4 {[%emt 0:00:00]} Qxe4 {[%emt 0:00:08]} 41. Qxe4 {[%emt 0:00:51]} Rxe4 {[%emt 0:01:57]} 42. Rd1 {[%emt 0:00:11]} f5 {[%emt 0:10:43]} 43. Rd8 {[%emt 0:01:05]} Kf7 {[%emt 0:00:44]} 44. Rb8 {[%emt 0:00:48]} Bb4 {[%emt 0:05:43]} 45. Rxb7+ {[%emt 0:00:59]} Ke6 {[%emt 0:00:44]} 46. Rh7 {[%emt 0:02:07]} f4 {[%emt 0:01:18]} 47. Bb6 {[%emt 0:01:50]} Kf5 {[%emt 0:00:52]} 48. Rxh6 {[%emt 0:02:00]} c5 {[%emt 0:01:43]} 49. Rd6 {[%emt 0:03:06]} Be1+ {[%emt 0:02:02]} 50. Kf1 {[%emt 0:01:07]} Bh4 {[%emt 0:02:29]} 51. Bxa5 {[%emt 0:00:48]} Re3 {[%emt 0:00:40]} 52. h6 {[%emt 0:01:16]} Re7 {[%emt 0:01:34]} 53. Bc3 {[%emt 0:02:23]} g4 {[%emt 0:00:33]} 54. Rd1 {[%emt 0:02:27]} Kg6 {[%emt 0:00:59]} 55. Be1 {[%emt 0:00:54]} Bf6 {[%emt 0:00:18]} 56. Rd6 {[%emt 0:00:58]} 1-0

[Event "Budimex POL-ch Women 2018"]
[Site "Warsaw"]
[Date "2018.05.17"]
[Round "6"]
[White "Majdan, Joanna"]
[Black "Szczepkowska, Karina"]
[Result "0-1"]
[ECO "C07"]
[WhiteElo "2369"]
[BlackElo "2404"]
[Annotator "NA"]
[PlyCount "82"]
[EventDate "2018.??.??"]
[EventType "tourn"]
[EventCountry "POL"]
[SourceTitle "playchess.com"]
[Source "ChessBase"]
[SourceQuality "1"]
[TimeControl "40/5400+30:1800+30"]

1. e4 {[%emt 0:00:00]} e6 {[%emt 0:00:14]} 2. d4 {[%emt 0:00:17]} d5 {[%emt 0:00:06]} 3. Nd2 {[%emt 0:00:05]} c5 {[%emt 0:00:06]} 4. exd5 {[%emt 0:00:04]} Qxd5 {[%emt 0:00:15]} 5. Ngf3 {[%emt 0:00:09]} cxd4 {[%emt 0:00:10]} 6. Bc4 {[%emt 0:00:05]} Qd7 {[%emt 0:00:21]} 7. O-O {[%emt 0:00:30]} Nc6 {[%emt 0:00:18]} 8. Nb3 {[%emt 0:00:14]} a6 {[%emt 0:00:24] LiveBook: 84 Games} 9. Nbxd4 {[%emt 0:00:28]} Nxd4 {[%emt 0:00:20]} 10. Nxd4 {[%emt 0:00:03]} Qc7 {[%emt 0:00:13]} 11. Bb3 {[%emt 0:00:04]} Bd6 {[%emt 0:00:38]} 12. Re1 {[%emt 0:02:46]} Ne7 {[%emt 0:16:16]} 13. Qh5 {[%emt 0:04:48]} O-O {[%emt 0:02:51]} 14. c3 {[%emt 0:01:14]} Qc5 $11 {[%emt 0:08:24]} 15. Qf3 {[%emt 0:07:04]} e5 {[%emt 0:09:21]} 16. Ne2 {[%emt 0:00:29]} Qc6 {[%emt 0:09:57]} 17. Qxc6 {[%emt 0:09:38]} Nxc6 {[%emt 0:00:07]} 18. Ng3 {[%emt 0:00:02]} h6 {[%emt 0:04:07]} 19. Be3 {[%emt 0:02:07]} Re8 {[%emt 0:02:44]} 20. Bb6 {[%emt 0:03:57]} Be6 {[%emt 0:05:57]} 21. Ne4 {[%emt 0:09:27]} Bf8 {[%emt 0:00:47]} 22. Rad1 {[%emt 0:00:54]} Bxb3 {[%emt 0:02:39]} 23. axb3 {[%emt 0:00:11]} Re6 {[%emt 0:00:09]} 24. Nc5 {[%emt 0:11:27]} Bxc5 {[%emt 0:03:53]} 25. Bxc5 {[%emt 0:00:17]} Na5 {[%emt 0:03:44]} 26. b4 {[%emt 0:00:44]} Nc4 {[%emt 0:10:56]} 27. b3 {[%emt 0:00:30]} b6 {[%emt 0:00:11]} 28. bxc4 {[%emt 0:07:52]} bxc5 {[%emt 0:00:04]} 29. bxc5 {[%emt 0:02:13]} a5 {[%emt 0:05:17]} 30. Rd6 {[%emt 0:08:46]} a4 {[%emt 0:04:51]} 31. f4 {[%emt 0:01:21]} exf4 {[%emt 0:04:45]} 32. Rdxe6 {[%emt 0:06:00]} fxe6 {[%emt 0:00:04]} 33. Rxe6 {[%emt 0:04:28]} a3 {[%emt 0:00:04]} 34. Re1 {[%emt 0:00:03]} a2 {[%emt 0:00:22]} 35. Ra1 {[%emt 0:00:01]} Kf7 {[%emt 0:00:06]} 36. Kf2 {[%emt 0:00:23]} Ke6 {[%emt 0:00:27]} 37. Ke2 {[%emt 0:00:18]} Kd7 {[%emt 0:00:18]} 38. h4 {[%emt 0:10:54]} g6 {[%emt 0:03:11]} 39. Kd3 {[%emt 0:04:22]} Kc6 {[%emt 0:00:05]} 40. Kd4 {[%emt 0:00:00]} Ra6 {[%emt 0:00:36]} 41. Kd3 {[%emt 0:07:39]} Kxc5 {[%emt 0:00:34] Kd4+} 0-1

[Event "Budimex POL-ch Women 2018"]
[Site "Warsaw"]
[Date "2018.05.17"]
[Round "6"]
[White "Warakomska, Anna"]
[Black "Sliwicka, Alicja"]
[Result "1/2-1/2"]
[ECO "C96"]
[WhiteElo "2295"]
[BlackElo "2261"]
[Annotator "NA"]
[PlyCount "104"]
[EventDate "2018.??.??"]
[EventType "tourn"]
[EventCountry "POL"]
[SourceTitle "playchess.com"]
[Source "ChessBase"]
[SourceQuality "1"]
[TimeControl "40/5400+30:1800+30"]

1. e4 {[%emt 0:00:00]} e5 {[%emt 0:00:05]} 2. Nf3 {[%emt 0:00:00]} Nc6 {[%emt 0:00:06]} 3. Bb5 {[%emt 0:00:00]} a6 {[%emt 0:00:06]} 4. Ba4 {[%emt 0:00:00]} Nf6 {[%emt 0:00:06]} 5. O-O {[%emt 0:00:00]} Be7 {[%emt 0:00:04]} 6. Re1 {[%emt 0:00:05]} b5 {[%emt 0:00:05]} 7. Bb3 {[%emt 0:00:03]} d6 {[%emt 0:00:05]} 8. c3 {[%emt 0:00:05]} O-O {[%emt 0:00:08]} 9. h3 {[%emt 0:00:02]} Na5 {[%emt 0:00:07]} 10. Bc2 {[%emt 0:00:04]} c5 {[%emt 0:00:07]} 11. d4 {[%emt 0:00:02]} Nd7 {[%emt 0:00:06]} 12. a4 {[%emt 0:01:03]} Bb7 {[%emt 0:04:22]} 13. d5 {[%emt 0:02:57]} c4 $14 {[%emt 0:17:44]} 14. Be3 {[%emt 0:06:15]} Rb8 {[%emt 0:05:59]} 15. axb5 {[%emt 0:12:04]} axb5 {[%emt 0:00:14]} 16. Nbd2 {[%emt 0:00:13]} f5 {[%emt 0:08:54]} 17. exf5 {[%emt 0:01:56]} Bxd5 {[%emt 0:00:40]} 18. Ne4 {[%emt 0:06:39]} Bxe4 {[%emt 0:00:46]} 19. Bxe4 {[%emt 0:00:10]} Kh8 {[%emt 0:07:37]} 20. Bc2 {[%emt 0:18:10]} Qc7 {[%emt 0:09:17]} 21. Ng5 {[%emt 0:18:23]} Bxg5 {[%emt 0:00:23]} 22. Bxg5 {[%emt 0:00:03]} Nf6 {[%emt 0:01:17]} 23. Bxf6 {[%emt 0:01:13]} Rxf6 {[%emt 0:00:52]} 24. g4 {[%emt 0:01:46]} Nc6 {[%emt 0:04:19]} 25. g5 {[%emt 0:01:46]} Rff8 {[%emt 0:02:14]} 26. Re4 {[%emt 0:09:33]} Ne7 {[%emt 0:10:18]} 27. f6 {[%emt 0:07:03]} Ng6 {[%emt 0:04:06]} 28. fxg7+ {[%emt 0:01:37]} Kxg7 {[%emt 0:00:35]} 29. Qh5 {[%emt 0:03:05]} Kg8 {[%emt 0:01:58]} 30. Rg4 {[%emt 0:04:09]} Qg7 {[%emt 0:00:53]} 31. Bxg6 {[%emt 0:01:32]} hxg6 {[%emt 0:01:44]} 32. Qh4 {[%emt 0:00:59]} Rf3 {[%emt 0:00:48]} 33. Rd1 {[%emt 0:00:55]} Rd8 {[%emt 0:01:10]} 34. Rg3 {[%emt 0:01:02]} Rf4 {[%emt 0:00:46]} 35. Rg4 {[%emt 0:00:11]} Rf5 {[%emt 0:00:40]} 36. Qg3 {[%emt 0:01:15]} d5 {[%emt 0:00:33]} 37. Qe3 {[%emt 0:01:23]} Qf7 {[%emt 0:06:38]} 38. Ra1 {[%emt 0:00:39]} b4 {[%emt 0:07:06]} 39. Qb6 {[%emt 0:00:42]} Re8 {[%emt 0:01:45]} 40. Ra7 {[%emt 0:00:00]} Qe6 {[%emt 0:00:46]} 41. Qxb4 {[%emt 0:06:24]} Ref8 {[%emt 0:02:22]} 42. Rg2 {[%emt 0:04:56]} Rf3 {[%emt 0:02:40]} 43. Qe7 {[%emt 0:05:07]} Qxe7 {[%emt 0:00:07]} 44. Rxe7 {[%emt 0:00:03]} e4 {[%emt 0:00:55]} 45. Re5 {[%emt 0:05:55]} Rd3 {[%emt 0:00:32]} 46. h4 {[%emt 0:02:18]} Rb8 {[%emt 0:01:12]} 47. h5 {[%emt 0:03:18]} Rxb2 {[%emt 0:05:12]} 48. h6 {[%emt 0:00:28]} Rh3 {[%emt 0:01:26]} 49. Rh2 {[%emt 0:03:34]} Rxh2 {[%emt 0:00:21]} 50. Kxh2 {[%emt 0:00:01]} Rxf2+ {[%emt 0:00:26]} 51. Kg3 {[%emt 0:01:00]} Rf5 {[%emt 0:02:07]} 52. Re8+ {[%emt 0:01:11]} Kh7 {[%emt 0:00:15]} 1/2-1/2

[Event "Budimex POL-ch Women 2018"]
[Site "Warsaw"]
[Date "2018.05.17"]
[Round "6"]
[White "Kubicka, Anna"]
[Black "Kulon, Klaudia"]
[Result "0-1"]
[ECO "E90"]
[WhiteElo "2219"]
[BlackElo "2353"]
[Annotator "NA"]
[PlyCount "52"]
[EventDate "2018.??.??"]
[EventType "tourn"]
[EventCountry "POL"]
[SourceTitle "playchess.com"]
[Source "ChessBase"]
[SourceQuality "1"]
[TimeControl "40/5400+30:1800+30"]

1. d4 {[%emt 0:00:00]} Nf6 {[%emt 0:00:05]} 2. c4 {[%emt 0:00:00]} g6 {[%emt 0:00:03]} 3. Nc3 {[%emt 0:00:00]} Bg7 {[%emt 0:00:03]} 4. e4 {[%emt 0:00:05]} d6 {[%emt 0:00:03]} 5. Nf3 {[%emt 0:00:07]} O-O {[%emt 0:00:04]} 6. h3 {[%emt 0:00:06]} Na6 {[%emt 0:00:05]} 7. Be3 {[%emt 0:00:13]} e5 {[%emt 0:00:07]} 8. d5 {[%emt 0:00:12]} Nh5 {[%emt 0:00:15]} 9. g3 {[%emt 0:00:10]} Qe8 {[%emt 0:00:10]} 10. Be2 {[%emt 0:00:52]} f5 {[%emt 0:00:05]} 11. exf5 {[%emt 0:00:05]} gxf5 {[%emt 0:00:04]} 12. Nh4 {[%emt 0:00:59]} Nf6 {[%emt 0:00:07]} 13. Qc2 {[%emt 0:01:48]} f4 {[%emt 0:00:18]} 14. gxf4 {[%emt 0:01:27]} exf4 {[%emt 0:00:05]} 15. Bd4 $1 {[%emt 0:01:11]} f3 $1 {[%emt 0:00:34]} 16. Nxf3 {[%emt 0:02:29]} Nb4 {[%emt 0:00:04]} 17. Qd2 {[%emt 0:05:56]} Bf5 {[%emt 0:00:22]} 18. O-O-O $17 {[%emt 0:14:43]} (18. Kd1 $11 {remains equal.}) 18... Ne4 {[%emt 0:00:44]} 19. Rhg1 {[%emt 0:18:27]} Bg6 {[%emt 0:00:32]} 20. Qe3 {[%emt 0:31:13]} Nxc3 {[%emt 0:03:04]} 21. bxc3 {[%emt 0:00:34]} Qa4 {[%emt 0:03:54]} 22. Qe6+ {[%emt 0:03:13]} Rf7 {[%emt 0:00:46]} 23. Rd2 {[%emt 0:02:02]} Re8 {[%emt 0:06:07]} 24. Qg4 {[%emt 0:00:22]} Nxa2+ {[%emt 0:00:43]} 25. Kb2 {[%emt 0:00:44]} Nxc3 {[%emt 0:00:27]} 26. Bxg7 {[%emt 0:06:41]} Qb4+ {[%emt 0:00:12]} 0-1

[Event "Budimex POL-ch Women 2018"]
[Site "Warsaw"]
[Date "2018.05.18"]
[Round "7"]
[White "Rajlich, Iweta"]
[Black "Warakomska, Anna"]
[Result "1-0"]
[ECO "D00"]
[WhiteElo "2389"]
[BlackElo "2295"]
[Annotator "NA"]
[PlyCount "129"]
[EventDate "2018.??.??"]
[EventType "tourn"]
[EventCountry "POL"]
[SourceTitle "playchess.com"]
[Source "ChessBase"]
[SourceQuality "1"]
[TimeControl "40/5400+30:1800+30"]

1. d4 {[%emt 0:00:00]} d5 {[%emt 0:00:31]} 2. Bg5 {[%emt 0:00:00]} Nf6 {[%emt 0:06:23]} 3. Nd2 {[%emt 0:00:49]} c6 {[%emt 0:01:00]} 4. c3 {[%emt 0:00:46]} Bf5 {[%emt 0:06:46] D00: 1 d4 d5: Unusual lines} 5. f3 {[%emt 0:00:40]} (5. Qb3 Qc8 6. Ngf3 Nbd7 7. h3 g6 8. Bf4 Bg7 9. e3 O-O 10. g4 Be4 11. Nxe4 Nxe4 12. Bd3 {1-0 (42) Warakomski,T (2537)-Karpus,M (2328) Bialystok 2017}) 5... Nbd7 {[%emt 0:02:51]} 6. Qb3 {[%emt 0:03:30]} Qb6 {[%emt 0:04:53]} 7. e3 {[%emt 0:01:20]} e6 {[%emt 0:03:48]} 8. g4 {[%emt 0:10:32]} Bg6 {[%emt 0:00:43]} 9. Bf4 {[%emt 0:04:28]} h6 {[%emt 0:07:26]} 10. Ne2 $146 {[%emt 0:01:56]} ({Predecessor:} 10. Kf2 Be7 11. h4 c5 12. Qxb6 axb6 {½-½ (54) Keuchen,M (2144)-Schmidt,J (1913) Hamburg 2007}) 10... c5 {[%emt 0:07:13]} 11. Qxb6 {[%emt 0:01:47]} Nxb6 {[%emt 0:09:16]} 12. Bg3 {[%emt 0:05:21]} Bd3 {[%emt 0:07:51]} 13. Nf4 {[%emt 0:04:13]} Bxf1 {[%emt 0:00:07]} 14. Rxf1 {[%emt 0:01:25]} cxd4 {[%emt 0:02:05]} 15. exd4 {[%emt 0:00:59]} Bd6 {[%emt 0:00:37]} 16. O-O-O {[%emt 0:04:00]} Ke7 {[%emt 0:03:43]} 17. b3 {[%emt 0:02:49]} Rhc8 {[%emt 0:05:55]} 18. Kb2 {[%emt 0:00:27]} Rc6 {[%emt 0:01:06]} 19. Nd3 {[%emt 0:03:05]} Bxg3 {[%emt 0:00:10]} 20. hxg3 {[%emt 0:00:04]} Nbd7 {[%emt 0:02:27]} 21. a4 {[%emt 0:04:32]} a5 {[%emt 0:02:26]} 22. Nb1 {[%emt 0:04:03]} Ne8 {[%emt 0:00:59]} 23. Nf4 {[%emt 0:02:01]} Nd6 {[%emt 0:00:46]} 24. Na3 {[%emt 0:01:29]} Rac8 {[%emt 0:02:07]} 25. Rc1 {[%emt 0:00:26]} Rb6 {[%emt 0:00:40]} 26. Rfe1 {[%emt 0:02:06]} Kf8 {[%emt 0:00:05]} 27. Kc2 {[%emt 0:01:36]} Nf6 {[%emt 0:04:16]} 28. Nd3 {[%emt 0:02:03]} Nd7 {[%emt 0:01:40]} 29. Re3 {[%emt 0:05:45]} Rc7 {[%emt 0:02:53]} 30. Nf4 {[%emt 0:02:09]} Rc8 {[%emt 0:02:17]} 31. Rh1 {[%emt 0:02:47]} Kg8 {[%emt 0:01:42]} 32. Rb1 {[%emt 0:05:42]} Rbc6 {[%emt 0:01:50]} 33. Kd2 {[%emt 0:01:00]} Nb6 {[%emt 0:01:55]} 34. Rc1 {[%emt 0:02:16]} R6c7 {[%emt 0:01:36]} 35. Ree1 {[%emt 0:01:09]} Nd7 {[%emt 0:02:14]} 36. Nd3 {[%emt 0:04:09]} Kf8 {[%emt 0:01:31]} 37. Nb5 {[%emt 0:01:36]} Nxb5 {[%emt 0:00:11]} 38. axb5 {[%emt 0:00:01]} Ke7 {[%emt 0:00:48]} 39. Rc2 {[%emt 0:04:20]} b6 {[%emt 0:02:58]} 40. b4 {[%emt 0:00:00]} axb4 {[%emt 0:01:41]} 41. Nxb4 {[%emt 0:14:18]} Kd6 {[%emt 0:00:04]} 42. Ra1 {[%emt 0:01:28]} e5 $14 {[%emt 0:04:36]} 43. Kd3 {[%emt 0:10:26]} Rc4 {[%emt 0:04:44]} 44. Ra7 {[%emt 0:01:56]} e4+ {[%emt 0:03:26]} 45. fxe4 {[%emt 0:00:09]} dxe4+ {[%emt 0:00:04]} 46. Kd2 {[%emt 0:00:17]} e3+ {[%emt 0:01:43]} 47. Kd3 {[%emt 0:00:09]} e2 {[%emt 0:00:28]} 48. Ra1 {[%emt 0:03:28]} Nf6 {[%emt 0:01:44]} 49. Nc6 {[%emt 0:01:24]} Ra4 {[%emt 0:01:03]} 50. Re1 {[%emt 0:01:17]} Nd5 {[%emt 0:06:17]} 51. Rexe2 {[%emt 0:00:48]} Ra1 {[%emt 0:01:48]} 52. Ra2 {[%emt 0:05:58]} Rg1 {[%emt 0:00:42]} 53. Rg2 {[%emt 0:02:30]} Rd1+ {[%emt 0:02:36]} 54. Rad2 {[%emt 0:00:37]} Rc1 {[%emt 0:00:21]} 55. Rc2 {[%emt 0:00:24]} Re1 {[%emt 0:00:40]} 56. Kd2 {[%emt 0:00:22]} Rb1 {[%emt 0:02:46]} 57. c4 {[%emt 0:00:49]} Nf6 {[%emt 0:00:23]} 58. Re2 {[%emt 0:00:49]} Re8 {[%emt 0:01:45]} 59. Ne5 {[%emt 0:00:29]} Kc7 {[%emt 0:00:44]} 60. Ra2 {[%emt 0:00:20]} Kb7 {[%emt 0:00:23]} 61. Nxf7 {[%emt 0:01:17]} Rxe2+ {[%emt 0:00:03]} 62. Kxe2 {[%emt 0:00:04]} Rg1 {[%emt 0:01:38]} 63. Kf2 {[%emt 0:00:31]} Rc1 {[%emt 0:00:40]} 64. Re2 {[%emt 0:00:33]} Rxc4 {[%emt 0:00:55]} 65. Nd6+ {[%emt 0:00:02]} 1-0

[Event "Budimex POL-ch Women 2018"]
[Site "Warsaw"]
[Date "2018.05.18"]
[Round "7"]
[White "Kulon, Klaudia"]
[Black "Majdan, Joanna"]
[Result "0-1"]
[ECO "B20"]
[WhiteElo "2353"]
[BlackElo "2369"]
[Annotator "NA"]
[PlyCount "66"]
[EventDate "2018.??.??"]
[EventType "tourn"]
[EventCountry "POL"]
[SourceTitle "playchess.com"]
[Source "ChessBase"]
[SourceQuality "1"]
[TimeControl "40/5400+30:1800+30"]

1. e4 {[%emt 0:00:00]} c5 {[%emt 0:00:03]} 2. b3 {[%emt 0:00:00]} g6 {[%emt 0:00:52]} 3. Bb2 {[%emt 0:00:20]} Nf6 {[%emt 0:00:04]} 4. Qf3 {[%emt 0:02:32]} d6 {[%emt 0:01:52]} 5. Bb5+ {[%emt 0:00:05]} Nbd7 {[%emt 0:01:48]} 6. Bxf6 {[%emt 0:00:06]} exf6 {[%emt 0:00:07]} 7. Nc3 {[%emt 0:00:03]} a6 {[%emt 0:01:27]} 8. Bxd7+ {[%emt 0:06:57]} Bxd7 {[%emt 0:00:04]} 9. Nge2 {[%emt 0:08:50]} Bg7 {[%emt 0:02:21]} 10. O-O {[%emt 0:01:55]} O-O {[%emt 0:01:17]} 11. Rad1 {[%emt 0:00:13]} f5 {[%emt 0:02:36]} 12. Qg3 {[%emt 0:08:07]} Be6 {[%emt 0:07:25]} 13. d4 {[%emt 0:01:20]} Qa5 {[%emt 0:02:23]} 14. d5 {[%emt 0:07:25]} Bc8 {[%emt 0:00:27]} 15. Rd3 {[%emt 0:06:47]} fxe4 {[%emt 0:02:17]} 16. Nxe4 {[%emt 0:05:15]} Bf5 {[%emt 0:01:11]} 17. Re3 {[%emt 0:08:01]} Bxe4 {[%emt 0:00:23]} 18. Rxe4 {[%emt 0:00:02]} Qxa2 {[%emt 0:00:21]} 19. Qxd6 {[%emt 0:03:24]} Qxc2 {[%emt 0:00:04]} 20. Ng3 {[%emt 0:00:04]} Rad8 {[%emt 0:07:24]} 21. Qb6 {[%emt 0:01:01]} Rxd5 {[%emt 0:00:07]} 22. Rc4 {[%emt 0:01:27]} Qb2 {[%emt 0:08:13]} 23. Qxb7 {[%emt 0:00:05]} Rfd8 {[%emt 0:01:01]} 24. Qb6 {[%emt 0:03:58]} Bd4 {[%emt 0:03:24]} 25. Qb7 {[%emt 0:09:37]} Re5 {[%emt 0:05:10]} 26. Qf3 {[%emt 0:08:05]} Rde8 {[%emt 0:06:20]} 27. Ra4 {[%emt 0:01:41]} R5e6 {[%emt 0:01:05]} 28. Qd3 {[%emt 0:02:56]} Re1 {[%emt 0:03:56]} 29. h4 {[%emt 0:08:10]} Bxf2+ {[%emt 0:00:57]} 30. Kh2 {[%emt 0:00:05]} Bxg3+ {[%emt 0:00:15]} 31. Kh3 {[%emt 0:00:11]} Rxf1 {[%emt 0:00:34]} 32. Qxf1 {[%emt 0:00:02]} Qxb3 {[%emt 0:00:17]} 33. Rxa6 {[%emt 0:00:04]} Bd6+ {[%emt 0:00:14]} 0-1